[Event "*** Titled Tuesday Blitz"]
[Site "Chess.com"]
[Date "2019.09.03"]
[Round "6"]
[White "harvsp123"]
[Black "NormWeinstein"]
[Result "0-1"]
[WhiteElo "2527"]
[BlackElo "2421"]
[TimeControl "180+2"]
[EndTime "16:21:00 PDT"]
[Termination "NormWeinstein won by checkmate"]

1. d4 {[%clk 0:03:01.9]} 1... c5 {[%clk 0:02:34.9]} 2. d5 {[%clk 0:03:02.5]}
2... e5 {[%clk 0:02:35.7]} 3. e4 {[%clk 0:02:57.9]} 3... d6 {[%clk 0:02:36.9]}
4. g3 {[%clk 0:02:53.7]} 4... Be7 {[%clk 0:02:36.4]} 5. h4 {[%clk 0:02:51]} 5...
Nf6 {[%clk 0:02:36.6]} 6. Bg2 {[%clk 0:02:51.6]} 6... O-O {[%clk 0:02:36.8]} 7.
c4 {[%clk 0:02:52.9]} 7... b5 {[%clk 0:02:32.3]} 8. cxb5 {[%clk 0:02:53.6]} 8...
a6 {[%clk 0:02:33.7]} 9. bxa6 {[%clk 0:02:53.8]} 9... Bxa6 {[%clk 0:02:34.6]}
10. Nc3 {[%clk 0:02:55.7]} 10... Nbd7 {[%clk 0:02:34.9]} 11. Nge2 {[%clk
0:02:56.7]} 11... c4 {[%clk 0:02:34.7]} 12. Be3 {[%clk 0:02:57.5]} 12... Qc7
{[%clk 0:02:33.1]} 13. O-O {[%clk 0:02:53.7]} 13... Nc5 {[%clk 0:02:32.2]} 14.
Nc1 {[%clk 0:02:48]} 14... Rfb8 {[%clk 0:02:28.1]} 15. Rb1 {[%clk 0:02:48.2]}
15... Nfd7 {[%clk 0:02:21.8]} 16. h5 {[%clk 0:02:47.3]} 16... h6 {[%clk
0:02:21]} 17. Bh3 {[%clk 0:02:47.6]} 17... Bg5 {[%clk 0:01:54.3]} 18. Bxg5
{[%clk 0:02:07.1]} 18... hxg5 {[%clk 0:01:54.9]} 19. Bf5 {[%clk 0:01:49.5]}
19... Nf6 {[%clk 0:01:46.8]} 20. Qd2 {[%clk 0:01:46.4]} 20... Qe7 {[%clk
0:01:35.2]} 21. Qxg5 {[%clk 0:01:44.1]} 21... Nxd5 {[%clk 0:01:35]} 22. Qxe7
{[%clk 0:01:31.5]} 22... Nxe7 {[%clk 0:01:35.7]} 23. Bg4 {[%clk 0:01:26.8]}
23... Bb7 {[%clk 0:01:22.4]} 24. Re1 {[%clk 0:01:27.6]} 24... Bc6 {[%clk
0:01:18.1]} 25. b4 {[%clk 0:01:26.2]} 25... cxb3 {[%clk 0:01:05.1]} 26. Nxb3
{[%clk 0:01:26.5]} 26... Na4 {[%clk 0:00:58]} 27. Nxa4 {[%clk 0:01:22]} 27...
Rxa4 {[%clk 0:00:57.9]} 28. Nd2 {[%clk 0:00:51]} 28... Rxb1 {[%clk 0:00:50.7]}
29. Rxb1 {[%clk 0:00:52.9]} 29... Rxa2 {[%clk 0:00:49]} 30. Rb8+ {[%clk
0:00:54.8]} 30... Kh7 {[%clk 0:00:48.7]} 31. Nf3 {[%clk 0:00:41.5]} 31... f6
{[%clk 0:00:43.7]} 32. h6 {[%clk 0:00:28.1]} 32... gxh6 {[%clk 0:00:31.8]} 33.
Rd8 {[%clk 0:00:18.4]} 33... Bxe4 {[%clk 0:00:26.2]} 34. Rd7 {[%clk 0:00:18.9]}
34... f5 {[%clk 0:00:23]} 35. Rxe7+ {[%clk 0:00:19]} 35... Kg6 {[%clk
0:00:24.4]} 36. Nh4+ {[%clk 0:00:19.4]} 36... Kf6 {[%clk 0:00:24.3]} 37. f3
{[%clk 0:00:11.5]} 37... Kxe7 {[%clk 0:00:23.2]} 38. Bxf5 {[%clk 0:00:12.7]}
38... Bd5 {[%clk 0:00:18.2]} 39. g4 {[%clk 0:00:13.5]} 39... Kf6 {[%clk
0:00:17.2]} 40. Bd3 {[%clk 0:00:14.1]} 40... Kg5 {[%clk 0:00:15.3]} 41. Nf5
{[%clk 0:00:11.8]} 41... Bxf3 {[%clk 0:00:13.9]} 42. Nxd6 {[%clk 0:00:13.3]}
42... Kf4 {[%clk 0:00:14.1]} 43. Bc4 {[%clk 0:00:14.6]} 43... Rb2 {[%clk
0:00:11.4]} 44. Kf1 {[%clk 0:00:13.3]} 44... Bxg4 {[%clk 0:00:11.1]} 45. Ke1
{[%clk 0:00:14.3]} 45... e4 {[%clk 0:00:12.3]} 46. Bd5 {[%clk 0:00:14.7]} 46...
e3 {[%clk 0:00:11.7]} 47. Be4 {[%clk 0:00:14.2]} 47... Rd2 {[%clk 0:00:09.6]}
48. Kf1 {[%clk 0:00:12.5]} 48... Rxd6 {[%clk 0:00:09.5]} 49. Bc2 {[%clk
0:00:13.1]} 49... Rd2 {[%clk 0:00:10]} 50. Bb3 {[%clk 0:00:14.3]} 50... Kg3
{[%clk 0:00:11]} 51. Ke1 {[%clk 0:00:15]} 51... h5 {[%clk 0:00:12.1]} 52. Ba4
{[%clk 0:00:15.8]} 52... h4 {[%clk 0:00:13.5]} 53. Bb3 {[%clk 0:00:16.8]} 53...
h3 {[%clk 0:00:15]} 54. Ba4 {[%clk 0:00:17.7]} 54... h2 {[%clk 0:00:16.3]} 55.
Bc6 {[%clk 0:00:18.7]} 55... Rd1# {[%clk 0:00:17.2]} 0-1

[Event "*** Titled Tuesday Blitz"]
[Site "Chess.com"]
[Date "2019.09.03"]
[Round "6"]
[White "nurgyulsalimova"]
[Black "13MiRacLe"]
[Result "1-0"]
[WhiteElo "2540"]
[BlackElo "2692"]
[TimeControl "180+2"]
[EndTime "16:21:02 PDT"]
[Termination "nurgyulsalimova won by checkmate"]

1. d4 {[%clk 0:03:01.9]} 1... Nf6 {[%clk 0:03:00.3]} 2. Nf3 {[%clk 0:03:02.8]}
2... g6 {[%clk 0:03:01.7]} 3. Nc3 {[%clk 0:03:02.9]} 3... d5 {[%clk 0:03:02.5]}
4. Bf4 {[%clk 0:03:03.8]} 4... Bg7 {[%clk 0:03:03.3]} 5. e3 {[%clk 0:03:05.1]}
5... O-O {[%clk 0:03:04.3]} 6. Be2 {[%clk 0:03:04.9]} 6... c5 {[%clk 0:03:05.6]}
7. O-O {[%clk 0:03:00.3]} 7... Nc6 {[%clk 0:03:01.1]} 8. Nb5 {[%clk 0:02:59.3]}
8... a6 {[%clk 0:02:46.1]} 9. Na3 {[%clk 0:02:57.9]} 9... c4 {[%clk 0:02:43]}
10. c3 {[%clk 0:02:56.7]} 10... Nh5 {[%clk 0:02:37.2]} 11. Bg5 {[%clk
0:02:53.1]} 11... h6 {[%clk 0:02:38.3]} 12. Bh4 {[%clk 0:02:53.9]} 12... g5
{[%clk 0:02:39.9]} 13. Bg3 {[%clk 0:02:52.9]} 13... Nxg3 {[%clk 0:02:37]} 14.
hxg3 {[%clk 0:02:54.8]} 14... b5 {[%clk 0:02:29]} 15. Nc2 {[%clk 0:02:54.3]}
15... Bf5 {[%clk 0:02:27.7]} 16. Nd2 {[%clk 0:02:40.4]} 16... e6 {[%clk
0:02:24.1]} 17. f3 {[%clk 0:02:38.7]} 17... Bg6 {[%clk 0:02:21.5]} 18. e4 {[%clk
0:02:39.3]} 18... e5 {[%clk 0:02:12]} 19. exd5 {[%clk 0:02:36.6]} 19... Qxd5
{[%clk 0:02:12.4]} 20. Ne3 {[%clk 0:02:37.3]} 20... Qd6 {[%clk 0:02:07.7]} 21.
d5 {[%clk 0:02:37.6]} 21... Qc5 {[%clk 0:02:01.8]} 22. Kf2 {[%clk 0:02:30.5]}
22... Ne7 {[%clk 0:01:55.8]} 23. Ne4 {[%clk 0:02:30.4]} 23... Bxe4 {[%clk
0:01:48.8]} 24. fxe4 {[%clk 0:02:32.3]} 24... f5 {[%clk 0:01:50.1]} 25. d6
{[%clk 0:01:35.5]} 25... Rfd8 {[%clk 0:01:45.4]} 26. dxe7 {[%clk 0:01:31.1]}
26... Rxd1 {[%clk 0:01:45.3]} 27. Raxd1 {[%clk 0:01:32]} 27... Re8 {[%clk
0:01:26.7]} 28. Rd8 {[%clk 0:01:27]} 28... Qxe7 {[%clk 0:01:16.4]} 29. Rxe8+
{[%clk 0:01:27]} 29... Qxe8 {[%clk 0:01:17.7]} 30. Nxf5 {[%clk 0:01:28.6]} 30...
Bf8 {[%clk 0:01:18]} 31. Rd1 {[%clk 0:01:25.4]} 31... Qc6 {[%clk 0:01:10.6]} 32.
Rd5 {[%clk 0:01:15.4]} 32... b4 {[%clk 0:01:11.7]} 33. Rxe5 {[%clk 0:01:03.6]}
33... bxc3 {[%clk 0:01:07.8]} 34. bxc3 {[%clk 0:01:05.5]} 34... Qb6+ {[%clk
0:01:06.6]} 35. Kf3 {[%clk 0:00:56.7]} 35... h5 {[%clk 0:01:01.6]} 36. Bxc4+
{[%clk 0:00:56]} 36... Kh8 {[%clk 0:00:54.4]} 37. Nd4 {[%clk 0:00:40.5]} 37...
g4+ {[%clk 0:00:48.5]} 38. Ke2 {[%clk 0:00:39.7]} 38... Qb2+ {[%clk 0:00:47.7]}
39. Kd3 {[%clk 0:00:36.5]} 39... Qb1+ {[%clk 0:00:48.6]} 40. Ke2 {[%clk
0:00:33.6]} 40... Qb2+ {[%clk 0:00:44.6]} 41. Kd3 {[%clk 0:00:33.9]} 41... Bh6
{[%clk 0:00:40.5]} 42. Re8+ {[%clk 0:00:21.1]} 42... Kh7 {[%clk 0:00:40.5]} 43.
Bg8+ {[%clk 0:00:20]} 43... Kg7 {[%clk 0:00:39.1]} 44. Nf5+ {[%clk 0:00:16.6]}
44... Kf6 {[%clk 0:00:24.8]} 45. Re6+ {[%clk 0:00:15.8]} 45... Kg5 {[%clk
0:00:26.1]} 46. Nxh6 {[%clk 0:00:14.3]} 46... Qb1+ {[%clk 0:00:17.4]} 47. Kd4
{[%clk 0:00:12]} 47... Qd1+ {[%clk 0:00:15.8]} 48. Ke5 {[%clk 0:00:12.5]} 48...
h4 {[%clk 0:00:03.1]} 49. Nf7+ {[%clk 0:00:11.8]} 49... Kh5 {[%clk 0:00:04.5]}
50. Rh6# {[%clk 0:00:13.2]} 1-0

[Event "*** Titled Tuesday Blitz"]
[Site "Chess.com"]
[Date "2019.09.03"]
[Round "6"]
[White "FearNoEvil12"]
[Black "Bishops83"]
[Result "0-1"]
[WhiteElo "1989"]
[BlackElo "2216"]
[TimeControl "180+2"]
[EndTime "16:21:06 PDT"]
[Termination "Bishops83 won by checkmate"]

1. e4 {[%clk 0:03:01.9]} 1... c5 {[%clk 0:02:59.9]} 2. Nc3 {[%clk 0:03:02.8]}
2... g6 {[%clk 0:03:00.1]} 3. f4 {[%clk 0:03:04.2]} 3... Bg7 {[%clk 0:03:01.1]}
4. Nf3 {[%clk 0:03:05.6]} 4... Nc6 {[%clk 0:03:02.4]} 5. Bc4 {[%clk 0:03:07]}
5... e6 {[%clk 0:03:02.5]} 6. f5 {[%clk 0:03:08.5]} 6... Nge7 {[%clk 0:03:02.7]}
7. fxg6 {[%clk 0:03:09.2]} 7... hxg6 {[%clk 0:03:02.9]} 8. d3 {[%clk 0:03:10.7]}
8... a6 {[%clk 0:02:58.2]} 9. a4 {[%clk 0:03:10.5]} 9... d5 {[%clk 0:02:58.1]}
10. Bb3 {[%clk 0:03:09.3]} 10... Nd4 {[%clk 0:02:42.6]} 11. O-O {[%clk
0:03:08.4]} 11... Nxb3 {[%clk 0:02:23.8]} 12. cxb3 {[%clk 0:03:07]} 12... d4
{[%clk 0:02:20.1]} 13. Ne2 {[%clk 0:03:01.2]} 13... e5 {[%clk 0:02:21]} 14. Qe1
{[%clk 0:02:59.6]} 14... f6 {[%clk 0:02:16.5]} 15. Bd2 {[%clk 0:02:53.2]} 15...
Qb6 {[%clk 0:02:13.5]} 16. b4 {[%clk 0:02:51.2]} 16... cxb4 {[%clk 0:02:13.6]}
17. Bxb4 {[%clk 0:02:51.8]} 17... Be6 {[%clk 0:02:11.8]} 18. Rc1 {[%clk
0:02:46.8]} 18... Nc6 {[%clk 0:02:11.8]} 19. Ba3 {[%clk 0:02:39.3]} 19... g5
{[%clk 0:02:08.4]} 20. Ng3 {[%clk 0:02:34.7]} 20... Qb3 {[%clk 0:01:41.5]} 21.
Qe2 {[%clk 0:02:27.9]} 21... Qxa4 {[%clk 0:01:38.9]} 22. Nd2 {[%clk 0:02:22.9]}
22... O-O-O {[%clk 0:01:29]} 23. Nc4 {[%clk 0:02:22.1]} 23... Kb8 {[%clk
0:01:25]} 24. Nd6 {[%clk 0:02:11.8]} 24... Rh7 {[%clk 0:00:49.7]} 25. Ndf5
{[%clk 0:02:09.8]} 25... Bh8 {[%clk 0:00:46.4]} 26. Ra1 {[%clk 0:02:05.4]} 26...
Qb5 {[%clk 0:00:45.4]} 27. Rfc1 {[%clk 0:02:04.5]} 27... Nb4 {[%clk 0:00:31.5]}
28. Bxb4 {[%clk 0:01:59.5]} 28... Qxb4 {[%clk 0:00:33.4]} 29. Qc2 {[%clk
0:01:54.6]} 29... Rc8 {[%clk 0:00:32.6]} 30. Qe2 {[%clk 0:01:39.5]} 30... Rhc7
{[%clk 0:00:32.9]} 31. Rxc7 {[%clk 0:01:37.8]} 31... Rxc7 {[%clk 0:00:34.8]} 32.
Qh5 {[%clk 0:01:31.1]} 32... Qf8 {[%clk 0:00:20.5]} 33. b4 {[%clk 0:01:27.4]}
33... Rc2 {[%clk 0:00:19.6]} 34. b5 {[%clk 0:01:26.7]} 34... axb5 {[%clk
0:00:17]} 35. Rb1 {[%clk 0:01:22.3]} 35... b4 {[%clk 0:00:17.4]} 36. h4 {[%clk
0:01:19.5]} 36... gxh4 {[%clk 0:00:17.2]} 37. Qxh4 {[%clk 0:01:18.2]} 37... b3
{[%clk 0:00:17.2]} 38. Qh7 {[%clk 0:00:57]} 38... b2 {[%clk 0:00:16.2]} 39. Nf1
{[%clk 0:00:52.5]} 39... Ba2 {[%clk 0:00:16.1]} 40. Rxb2 {[%clk 0:00:45]} 40...
Rxb2 {[%clk 0:00:18]} 41. Kh2 {[%clk 0:00:35]} 41... Be6 {[%clk 0:00:16.6]} 42.
N1g3 {[%clk 0:00:34.7]} 42... Rc2 {[%clk 0:00:14.8]} 43. Qh5 {[%clk 0:00:30.4]}
43... b5 {[%clk 0:00:13.5]} 44. Qd1 {[%clk 0:00:29]} 44... Qc8 {[%clk
0:00:12.5]} 45. Qb1 {[%clk 0:00:27.5]} 45... Qc6 {[%clk 0:00:08.5]} 46. Qb4
{[%clk 0:00:27.8]} 46... Bg7 {[%clk 0:00:06.2]} 47. Qe7 {[%clk 0:00:26.6]} 47...
Qd7 {[%clk 0:00:07.2]} 48. Qxg7 {[%clk 0:00:20.9]} 48... Qxg7 {[%clk 0:00:06.7]}
49. Nxg7 {[%clk 0:00:22.8]} 49... Bd7 {[%clk 0:00:07.2]} 50. N3h5 {[%clk
0:00:22.8]} 50... b4 {[%clk 0:00:07.3]} 51. Nxf6 {[%clk 0:00:23.8]} 51... Bc8
{[%clk 0:00:06.9]} 52. Nd5 {[%clk 0:00:18]} 52... b3 {[%clk 0:00:06.9]} 53. Ne8
{[%clk 0:00:19.4]} 53... b2 {[%clk 0:00:07.6]} 54. Nd6 {[%clk 0:00:21.3]} 54...
b1=Q {[%clk 0:00:08.2]} 55. Kg3 {[%clk 0:00:18.1]} 55... Qe1+ {[%clk 0:00:08.1]}
56. Kh2 {[%clk 0:00:16.9]} 56... Qh4+ {[%clk 0:00:08.3]} 57. Kg1 {[%clk
0:00:17.4]} 57... Rc1# {[%clk 0:00:10.2]} 0-1

[Event "*** Titled Tuesday Blitz"]
[Site "Chess.com"]
[Date "2019.09.03"]
[Round "6"]
[White "FontVella8"]
[Black "ALEXJR20"]
[Result "1-0"]
[WhiteElo "2491"]
[BlackElo "2226"]
[TimeControl "180+2"]
[EndTime "16:21:08 PDT"]
[Termination "FontVella8 won by resignation"]

1. d4 {[%clk 0:03:01.9]} 1... d5 {[%clk 0:02:59.3]} 2. c4 {[%clk 0:03:03.4]}
2... e6 {[%clk 0:03:00.1]} 3. Nc3 {[%clk 0:03:04.8]} 3... Nf6 {[%clk 0:03:01.1]}
4. cxd5 {[%clk 0:03:05.9]} 4... exd5 {[%clk 0:03:02.9]} 5. Bg5 {[%clk
0:03:07.2]} 5... c6 {[%clk 0:03:03.9]} 6. e3 {[%clk 0:03:08.7]} 6... Be7 {[%clk
0:03:04.3]} 7. Bd3 {[%clk 0:03:09.8]} 7... Ne4 {[%clk 0:03:02.3]} 8. Bxe7 {[%clk
0:03:09]} 8... Qxe7 {[%clk 0:03:04.2]} 9. Nge2 {[%clk 0:03:06.1]} 9... f5 {[%clk
0:03:00.3]} 10. O-O {[%clk 0:03:06]} 10... O-O {[%clk 0:03:00.8]} 11. Qc2 {[%clk
0:03:03.5]} 11... Nd7 {[%clk 0:02:52]} 12. Rae1 {[%clk 0:03:04.5]} 12... Ndf6
{[%clk 0:02:48.9]} 13. f3 {[%clk 0:03:05.8]} 13... Nd6 {[%clk 0:02:38.7]} 14.
Qd2 {[%clk 0:03:06.4]} 14... Bd7 {[%clk 0:02:29]} 15. Nc1 {[%clk 0:03:07.5]}
15... Rae8 {[%clk 0:02:24.3]} 16. b3 {[%clk 0:03:08.8]} 16... Kh8 {[%clk
0:02:04.1]} 17. Bc2 {[%clk 0:03:10]} 17... Nf7 {[%clk 0:01:58.3]} 18. Nd3 {[%clk
0:03:10.8]} 18... b6 {[%clk 0:01:55.7]} 19. f4 {[%clk 0:03:01]} 19... c5 {[%clk
0:01:43.5]} 20. Ne5 {[%clk 0:03:01.7]} 20... Be6 {[%clk 0:01:25.1]} 21. Nd1
{[%clk 0:02:53.9]} 21... Rc8 {[%clk 0:01:17]} 22. Nf2 {[%clk 0:02:54.5]} 22...
Rfd8 {[%clk 0:01:11.9]} 23. Nfd3 {[%clk 0:02:54.2]} 23... Ne4 {[%clk 0:01:11.9]}
24. Qe2 {[%clk 0:02:53.9]} 24... cxd4 {[%clk 0:01:10.2]} 25. exd4 {[%clk
0:02:54]} 25... Rc3 {[%clk 0:00:58.3]} 26. Nxf7+ {[%clk 0:02:49.4]} 26... Qxf7
{[%clk 0:00:55]} 27. Ne5 {[%clk 0:02:51.3]} 27... Qc7 {[%clk 0:00:49.1]} 28. Bd3
{[%clk 0:02:52]} 28... g6 {[%clk 0:00:37.7]} 29. Rf3 {[%clk 0:02:47.4]} 29...
Kg7 {[%clk 0:00:36.9]} 30. Rh3 {[%clk 0:02:48.5]} 30... Rc8 {[%clk 0:00:33]} 31.
Ba6 {[%clk 0:02:47.8]} 31... Rd8 {[%clk 0:00:29.8]} 32. Rf3 {[%clk 0:02:32.6]}
32... Rc2 {[%clk 0:00:27.1]} 33. Qb5 {[%clk 0:02:28.5]} 33... Rd2 {[%clk
0:00:23.7]} 34. Qc6 {[%clk 0:02:20]} 34... Qxc6 {[%clk 0:00:19.1]} 35. Nxc6
{[%clk 0:02:21.9]} 35... Rd6 {[%clk 0:00:19.6]} 36. Rc1 {[%clk 0:02:19.8]} 36...
Kf8 {[%clk 0:00:16.4]} 37. a4 {[%clk 0:02:19.8]} 37... Rb2 {[%clk 0:00:16.9]}
38. Ne5 {[%clk 0:02:15.3]} 38... Nd2 {[%clk 0:00:16.8]} 39. Rf2 {[%clk
0:02:13.2]} 39... Nxb3 {[%clk 0:00:15.4]} 40. Rxb2 {[%clk 0:02:07.3]} 40... Nxc1
{[%clk 0:00:14.7]} 41. Rb1 {[%clk 0:01:56.8]} 41... Na2 {[%clk 0:00:14.8]} 42.
Rb3 {[%clk 0:01:32.8]} 42... Ke7 {[%clk 0:00:12.8]} 43. Re3 {[%clk 0:01:32.7]}
43... Kd8 {[%clk 0:00:13.7]} 44. Bb5 {[%clk 0:01:32.1]} 44... Nb4 {[%clk
0:00:13.1]} 45. Rb3 {[%clk 0:01:29.4]} 45... a5 {[%clk 0:00:13.6]} 46. Rc3
{[%clk 0:01:27.9]} 46... Bg8 {[%clk 0:00:12.5]} 47. h4 {[%clk 0:01:27.2]} 47...
h5 {[%clk 0:00:12.4]} 48. Rg3 {[%clk 0:01:26.9]} 48... Bh7 {[%clk 0:00:12]} 49.
Nf7+ {[%clk 0:01:28.1]} 49... Ke7 {[%clk 0:00:12.4]} 50. Nxd6 {[%clk 0:01:29.3]}
50... Kxd6 {[%clk 0:00:14.3]} 51. Be8 {[%clk 0:01:29.8]} 51... Nc2 {[%clk
0:00:14.1]} 52. Bxg6 {[%clk 0:01:27.9]} 52... Bxg6 {[%clk 0:00:15.4]} 53. Rxg6+
{[%clk 0:01:29.8]} 53... Kc7 {[%clk 0:00:16.2]} 54. Rg5 {[%clk 0:01:26.6]} 54...
Nxd4 {[%clk 0:00:17.4]} 55. Rxh5 {[%clk 0:01:28.1]} 55... b5 {[%clk 0:00:12.9]}
56. axb5 {[%clk 0:01:10.2]} 56... a4 {[%clk 0:00:14.8]} 57. Rh6 {[%clk
0:01:07.5]} 57... Nxb5 {[%clk 0:00:14.5]} 58. Ra6 {[%clk 0:01:07.4]} 58... a3
{[%clk 0:00:15.6]} 59. h5 {[%clk 0:01:08.8]} 59... Kb7 {[%clk 0:00:16.1]} 60.
Ra4 {[%clk 0:01:08.7]} 60... d4 {[%clk 0:00:13.8]} 61. h6 {[%clk 0:01:09.5]}
61... d3 {[%clk 0:00:15]} 62. Kf2 {[%clk 0:01:05.2]} 62... d2 {[%clk 0:00:15.5]}
63. Ke2 {[%clk 0:01:06.7]} 63... Nc3+ {[%clk 0:00:15.4]} 64. Kxd2 {[%clk
0:01:08.1]} 64... Nxa4 {[%clk 0:00:17.1]} 65. h7 {[%clk 0:01:09.5]} 65... a2
{[%clk 0:00:18.5]} 66. h8=Q {[%clk 0:01:10.2]} 66... Nc5 {[%clk 0:00:19.1]} 67.
Qg7+ {[%clk 0:01:06.7]} 67... Kb6 {[%clk 0:00:20.2]} 68. Qb2+ {[%clk 0:01:07.9]}
68... Kc6 {[%clk 0:00:18.3]} 69. Qxa2 {[%clk 0:01:09]} 1-0

[Event "*** Titled Tuesday Blitz"]
[Site "Chess.com"]
[Date "2019.09.03"]
[Round "6"]
[White "Gentlejimmy7"]
[Black "TomPolgar"]
[Result "1/2-1/2"]
[WhiteElo "2506"]
[BlackElo "2326"]
[TimeControl "180+2"]
[EndTime "16:21:11 PDT"]
[Termination "Game drawn by repetition"]

1. d4 {[%clk 0:02:57.1]} 1... Nf6 {[%clk 0:03:00.5]} 2. Nf3 {[%clk 0:02:59]}
2... d5 {[%clk 0:02:58]} 3. g3 {[%clk 0:03:00.9]} 3... e6 {[%clk 0:02:58.7]} 4.
Bg2 {[%clk 0:03:02.8]} 4... Be7 {[%clk 0:02:59.6]} 5. O-O {[%clk 0:03:04.7]}
5... O-O {[%clk 0:03:00.9]} 6. c4 {[%clk 0:03:06.3]} 6... dxc4 {[%clk
0:03:01.6]} 7. Qc2 {[%clk 0:03:07]} 7... a6 {[%clk 0:03:01.2]} 8. a4 {[%clk
0:03:08.1]} 8... Bd7 {[%clk 0:03:01.3]} 9. Qxc4 {[%clk 0:03:09.6]} 9... Bc6
{[%clk 0:02:59.4]} 10. Bf4 {[%clk 0:03:11.2]} 10... Bd6 {[%clk 0:02:55.1]} 11.
Qc1 {[%clk 0:03:11.5]} 11... a5 {[%clk 0:02:52]} 12. Nc3 {[%clk 0:03:12.6]}
12... Na6 {[%clk 0:02:49.3]} 13. Rd1 {[%clk 0:02:56.6]} 13... Nb4 {[%clk
0:02:49.4]} 14. Ne5 {[%clk 0:02:56.9]} 14... Bxg2 {[%clk 0:02:43.1]} 15. Kxg2
{[%clk 0:02:58.8]} 15... c6 {[%clk 0:02:40.7]} 16. Nc4 {[%clk 0:02:59.4]} 16...
Bxf4 {[%clk 0:02:33.1]} 17. gxf4 {[%clk 0:03:01.3]} 17... Nh5 {[%clk 0:01:49.9]}
18. Kh1 {[%clk 0:01:53.3]} 18... Qh4 {[%clk 0:01:47.6]} 19. e3 {[%clk
0:01:43.2]} 19... Qxf2 {[%clk 0:01:39.5]} 20. Qd2 {[%clk 0:01:44.3]} 20... Qf3+
{[%clk 0:00:53]} 21. Qg2 {[%clk 0:01:44.5]} 21... Qxg2+ {[%clk 0:00:52.2]} 22.
Kxg2 {[%clk 0:01:46.4]} 22... Rfd8 {[%clk 0:00:52.7]} 23. Kf3 {[%clk 0:01:46.7]}
23... Nf6 {[%clk 0:00:49.1]} 24. Ne5 {[%clk 0:01:46.1]} 24... Nfd5 {[%clk
0:00:41.9]} 25. Ne4 {[%clk 0:01:42.6]} 25... f6 {[%clk 0:00:36.6]} 26. Nc4
{[%clk 0:01:42.2]} 26... b5 {[%clk 0:00:23.5]} 27. axb5 {[%clk 0:00:53.3]} 27...
cxb5 {[%clk 0:00:24.3]} 28. Nxa5 {[%clk 0:00:54.9]} 28... Nc2 {[%clk 0:00:24.8]}
29. Nc6 {[%clk 0:00:55.8]} 29... Rxa1 {[%clk 0:00:13.4]} 30. Rxa1 {[%clk
0:00:55]} 30... Nxa1 {[%clk 0:00:15.3]} 31. Nxd8 {[%clk 0:00:56]} 31... Nc2
{[%clk 0:00:13.3]} 32. Nxe6 {[%clk 0:00:54.4]} 32... Ncxe3 {[%clk 0:00:14.3]}
33. Nd6 {[%clk 0:00:42.3]} 33... b4 {[%clk 0:00:11.2]} 34. Nc5 {[%clk
0:00:41.3]} 34... Nc2 {[%clk 0:00:06.9]} 35. Ke4 {[%clk 0:00:37.9]} 35... Nb6
{[%clk 0:00:05.7]} 36. Kd3 {[%clk 0:00:37.7]} 36... Ne1+ {[%clk 0:00:05.2]} 37.
Ke2 {[%clk 0:00:38.5]} 37... Nc2 {[%clk 0:00:06.2]} 38. Kd3 {[%clk 0:00:31.7]}
38... Ne1+ {[%clk 0:00:07.2]} 39. Ke4 {[%clk 0:00:29.5]} 39... Nc2 {[%clk
0:00:06.2]} 40. d5 {[%clk 0:00:29.4]} 40... g6 {[%clk 0:00:04.2]} 41. Nb5 {[%clk
0:00:27.9]} 41... f5+ {[%clk 0:00:04.7]} 42. Ke5 {[%clk 0:00:27.6]} 42... Kf7
{[%clk 0:00:04.2]} 43. d6 {[%clk 0:00:23.2]} 43... Nc4+ {[%clk 0:00:02.8]} 44.
Kd5 {[%clk 0:00:24.6]} 44... N2e3+ {[%clk 0:00:03.1]} 45. Kc6 {[%clk 0:00:25]}
45... Na5+ {[%clk 0:00:02.9]} 46. Kc7 {[%clk 0:00:24.3]} 46... Nd5+ {[%clk
0:00:03.9]} 47. Kc8 {[%clk 0:00:21.2]} 47... Nb6+ {[%clk 0:00:02.6]} 48. Kc7
{[%clk 0:00:22.6]} 48... Nd5+ {[%clk 0:00:03.6]} 49. Kb8 {[%clk 0:00:23.4]}
49... Nc6+ {[%clk 0:00:03.6]} 50. Kb7 {[%clk 0:00:23.6]} 50... Na5+ {[%clk
0:00:03.8]} 51. Ka6 {[%clk 0:00:24]} 51... Nc6 {[%clk 0:00:03.6]} 52. Nd3 {[%clk
0:00:16.6]} 52... Ke6 {[%clk 0:00:03.5]} 53. Nc5+ {[%clk 0:00:15.6]} 53... Kf7
{[%clk 0:00:04.3]} 54. Nd3 {[%clk 0:00:16.4]} 54... Ke6 {[%clk 0:00:05.7]} 55.
Nc5+ {[%clk 0:00:17]} 55... Kf7 {[%clk 0:00:06.5]} 1/2-1/2